bitfinex-derivatives/quotes_ETHF0:USTF0_20241004
["timestamp","ask_amount","ask_price","bid_price","bid_amount"]
[1728066439521,0.41335,2419.4,2419.3,0.41336]
[1728066439720,3.23,2419.5,2419.2,0.8294]
[1728066439920,3.23,2419.5,2419.2,1.24276]
[1728066440122,0.41334,2419.4,2419.2,1.24276]
[1728066440821,3.23,2419.5,2419.2,1.24276]
[1728066441016,0.41336,2419.3,2419.2,1.24276]
[1728066442217,0.41336,2419.3,2419.2,0.8294]
[1728066442524,0.41339,2419.2,2419.0,0.4134]
[1728066442818,0.41339,2419.2,2419.0,0.8072]
[1728066443023,0.41339,2419.2,2419.1,0.41339]
[1728066443218,4.68159,2419.4,2419.1,0.41339]
[1728066443411,0.41339,2419.2,2419.0,1.22059]
[1728066443614,0.41339,2419.2,2419.1,0.41339]
[1728066444015,0.41338,2419.2,2419.1,0.41338]
[1728066444923,3.64339,2419.2,2419.1,0.41339]
[1728066445119,3.64339,2419.2,2419.0,0.8072]
[1728066445421,3.64339,2419.2,2419.1,0.41339]
[1728066445620,0.41339,2419.1,2419.0,1.2206]
[1728066445822,0.41339,2419.1,2419.0,0.8072]
[1728066446016,0.41339,2419.1,2419.0,1.22061]
[1728066446816,0.41339,2419.1,2419.0,0.8072]
[1728066447414,0.41339,2419.1,2419.0,1.22061]
[1728066447929,0.41339,2419.1,2419.0,0.8072]
[1728066448812,0.41339,2419.1,2419.0,1.22061]
[1728066450523,0.41339,2419.1,2419.0,0.8072]
[1728066450921,0.41339,2419.1,2419.0,1.22061]
[1728066451127,0.41339,2419.1,2419.0,0.8072]
[1728066451327,0.41339,2419.1,2419.0,1.22061]
[1728066451919,0.41337,2419.3,2419.2,0.41337]
[1728066452224,4.68159,2419.4,2419.0,1.84073]
[1728066452225,3.23,2419.4,2419.0,1.84073]
[1728066452625,0.41336,2419.3,2419.2,0.41336]
[1728066453220,3.23,2419.4,2419.0,1.84073]
[1728066453421,3.64335,2419.4,2419.3,0.41336]
[1728066454725,3.23,2419.4,2419.3,0.41336]
[1728066455026,1.42713,2419.7,2419.2,4.24124]
[1728066455224,0.41334,2419.5,2419.4,0.41334]
[1728066455623,3.89438325,2420.0,2419.4,0.41334]
[1728066455624,3.71703,2420.1,2419.9,0.41326]
[1728066455825,0.41319,2420.3,2420.1,0.41321]
[1728066456325,3.64319,2420.4,2420.2,0.4132]
[1728066456526,3.64319,2420.4,2420.1,0.4261]
[1728066456527,3.23,2420.4,2420.1,0.4261]
[1728066456722,3.23,2420.4,2420.3,0.41319]
[1728066456923,11.23420986,2420.7,2420.1,0.8398]
[1728066457122,0.41316,2420.5,2420.4,0.41317]
[1728066457319,0.41316,2420.5,2420.1,0.8398]
[1728066457523,0.41318,2420.4,2420.3,0.41319]
[1728066457723,0.41318,2420.4,2420.1,0.8398]
[1728066457925,3.64316,2420.5,2420.3,0.41318]
[1728066458120,3.64316,2420.5,2420.4,0.4067]
[1728066460636,3.23,2420.5,2420.4,0.4067]
[1728066460839,3.64315,2420.5,2420.4,0.4067]
[1728066465134,0.41315,2420.5,2420.4,0.4067]
[1728066465535,0.41315,2420.6,2420.4,0.4067]
[1728066465735,0.41315,2420.5,2420.4,0.4067]
[1728066465935,0.41315,2420.6,2420.4,0.4067]
[1728066466137,4.26281,2420.7,2420.4,0.4067]
[1728066466333,0.4024,2421.1,2420.5,3.23]
[1728066466536,0.41308,2421.0,2420.7,6.85091]
[1728066466737,0.8252,2421.1,2420.8,0.3999]
[1728066466943,0.8252,2421.1,2420.8,0.813]
[1728066467142,0.41307,2421.0,2420.8,0.813]
[1728066467434,0.41307,2421.0,2420.8,0.3999]
[1728066467639,1.23826,2421.1,2420.8,0.81299]
[1728066467842,0.41308,2421.0,2420.8,0.3999]
[1728066468137,0.4228,2421.1,2420.8,0.3999]
[1728066468442,3.62083,2421.3,2421.0,0.41306]
[1728066468640,3.62083,2421.3,2421.1,0.423]
[1728066468937,0.41303,2421.2,2421.1,0.423]
[1728066469141,0.41308,2421.0,2420.8,0.3999]
[1728066469341,1.03264,2421.1,2420.8,0.3999]
[1728066469342,0.41309,2420.9,2420.8,0.3999]
[1728066469535,3.64309,2420.9,2420.8,0.3999]
[1728066470536,0.3863,2421.0,2420.8,0.3999]
[1728066470745,0.3863,2421.0,2420.8,0.81299]
[1728066470945,3.64306,2421.1,2420.9,0.41309]
[1728066471332,0.41306,2421.1,2421.0,0.3903]
[1728066471638,3.2078,2421.3,2421.0,0.80336]
[1728066471831,4.00713,2421.3,2421.0,0.80336]
[1728066472639,0.41304,2421.2,2421.0,0.3903]
[1728066472846,6.8241,2421.3,2421.0,0.3903]
[1728066473155,0.41305,2421.1,2421.0,0.3903]
[1728066473642,0.41305,2421.2,2421.0,0.3903]
[1728066474045,6.8241,2421.3,2421.0,0.3903]
[1728066474247,3.23,2421.1,2421.0,0.3903]
[1728066474445,3.64305,2421.1,2421.0,0.3903]
[1728066474645,3.23,2421.1,2421.0,0.3903]
[1728066475450,3.23,2421.1,2421.0,0.80337]
[1728066475749,3.23,2421.1,2421.0,0.3903]
[1728066476544,3.64305,2421.1,2421.0,0.3903]
[1728066476749,3.64306,2421.1,2420.8,0.81299]
[1728066477150,3.23,2421.1,2420.8,0.81299]
[1728066477446,3.64307,2421.1,2420.8,0.3999]
[1728066477652,3.23,2421.1,2420.9,0.41308]
[1728066477850,3.64305,2421.1,2420.9,0.41308]
[1728066478444,0.41307,2421.0,2420.8,0.81299]
[1728066478643,3.64306,2421.1,2420.9,0.41308]
[1728066479052,0.41307,2421.0,2420.8,0.81299]
[1728066479352,3.64306,2421.1,2420.9,0.41308]
[1728066480654,3.23,2421.1,2420.9,0.41308]
[1728066480850,0.41305,2421.2,2421.0,0.41307]
[1728066481247,6.8241,2421.3,2420.8,1.43266]
[1728066481445,7.23713,2421.3,2420.8,1.43266]
[1728066481649,6.8241,2421.3,2420.8,0.3999]
[1728066481850,0.41305,2421.1,2420.9,0.41308]
[1728066482252,0.41304,2421.2,2421.0,0.41306]
[1728066482648,0.41305,2421.1,2421.0,0.41306]
[1728066483051,0.41305,2421.1,2420.9,0.41307]
[1728066483553,0.41305,2421.1,2420.8,0.3999]
[1728066483554,0.41305,2421.2,2421.0,0.41306]
[1728066486655,6.8241,2421.3,2420.8,0.3999]
[1728066487062,0.41304,2421.2,2421.0,0.41306]
[1728066487350,2.0633,2421.7,2421.1,3.23]
[1728066487351,3.3038,2421.7,2421.1,3.23]
[1728066487551,3.5996,2421.7,2421.3,4.26255]
[1728066487948,3.5996,2421.7,2421.3,1.03255]
[1728066488158,4.01256,2421.7,2421.5,0.41297]
[1728066488751,0.41297,2421.6,2421.5,0.41297]
[1728066488951,4.01256,2421.7,2421.5,0.41297]
[1728066489251,3.5996,2421.7,2421.5,0.41297]
[1728066489452,0.41297,2421.6,2421.5,0.41297]
[1728066489654,0.41297,2421.6,2421.4,0.41299]
[1728066489853,4.43226,2421.7,2421.5,0.41298]
[1728066490055,0.41297,2421.6,2421.4,0.41299]
[1728066493063,5.05168,2421.7,2421.2,0.8125]
[1728066493263,0.41299,2421.5,2421.3,0.41301]
[1728066493860,0.41299,2421.5,2421.3,0.41302]
[1728066494262,3.23,2421.6,2421.2,1.22552]
[1728066494463,0.41302,2421.3,2421.2,1.22552]
[1728066495651,0.41301,2421.4,2421.3,0.41301]
[1728066496862,0.41302,2421.3,2421.2,1.22553]
[1728066502762,0.41302,2421.3,2421.2,0.8125]
[1728066503068,0.80502,2421.3,2421.2,0.8125]
[1728066504563,0.41303,2421.2,2421.1,0.81654]
[1728066504769,0.41303,2421.2,2421.1,0.4035]
[1728066504966,0.41305,2421.1,2421.0,0.41305]
[1728066510363,0.41305,2421.1,2421.0,1.90305]
[1728066516170,1.03259,2421.2,2420.9,0.7934]
[1728066516379,0.392,2421.3,2420.9,1.20648]
[1728066516380,0.41307,2421.0,2420.9,1.20648]
[1728066519971,0.41307,2421.0,2420.9,0.7934]
[1728066521776,0.41307,2421.0,2420.9,1.20649]
[1728066522973,0.41307,2421.0,2420.9,0.7934]
[1728066523477,0.41307,2421.0,2420.9,1.20649]
[1728066526579,0.41307,2421.0,2420.9,0.7934]
[1728066526775,0.41307,2421.0,2420.9,1.20649]
[1728066527579,0.41307,2421.0,2420.8,1.891]
[1728066527580,0.41311,2420.9,2420.8,0.41309]
[1728066527779,0.4131,2420.8,2420.7,2.72462]
[1728066527982,0.4131,2420.8,2420.7,1.23462]
[1728066528180,0.4131,2420.8,2420.7,0.8215]
[1728066528389,0.4131,2420.8,2420.7,1.23462]
[1728066530485,0.4052,2420.9,2420.6,3.2078]
[1728066530682,0.41312,2420.7,2420.6,3.2078]
[1728066531189,0.41312,2420.7,2420.6,3.62094]
[1728066531876,0.41312,2420.8,2420.7,0.41311]
[1728066535484,1.43792,2420.9,2420.6,1.49]
[1728066535687,0.41312,2420.7,2420.6,1.90312]
[1728066548997,0.41312,2420.7,2420.6,1.49]
[1728066549198,0.41314,2420.6,2420.5,1.90315]
[1728066549698,0.41315,2420.5,2420.4,4.3965]
[1728066550003,0.41315,2420.5,2420.4,1.1887]
[1728066550398,0.83215,2420.5,2420.4,1.60187]
[1728066551600,0.83215,2420.5,2420.4,1.1887]
[1728066551802,0.4132,2420.3,2420.1,1.49]
[1728066552001,0.4132,2420.3,2420.2,0.80068]
[1728066554196,0.4132,2420.3,2420.2,0.3875]
[1728066554601,0.4132,2420.3,2420.2,0.8007]
[1728066554806,0.4132,2420.3,2420.2,2.2907]
[1728066568706,3.3038,2420.8,2420.2,12.0095]
[1728066568907,0.41311,2420.8,2420.7,1.9031]
[1728066569103,3.78129549,2420.9,2420.8,0.4131]
[1728066569311,4.19438549,2420.9,2420.8,0.4131]
[1728066569511,3.78129549,2420.9,2420.8,0.4131]
[1728066569910,4.19438549,2420.9,2420.8,0.4131]
[1728066570107,3.78129549,2420.9,2420.8,0.4131]
[1728066571907,3.78129549,2420.9,2420.8,4.5435]
[1728066574513,3.78129549,2420.9,2420.8,0.4131]
[1728066574713,3.78129549,2420.9,2420.8,4.5435]
[1728066576413,3.78129549,2420.9,2420.8,0.4131]
[1728066580327,3.78129549,2420.9,2420.8,4.5435]
[1728066580526,3.78129549,2420.9,2420.8,0.4131]
[1728066582025,3.78129549,2420.9,2420.8,4.5435]
[1728066583223,3.78129549,2420.9,2420.8,0.4131]
[1728066583527,3.78129549,2420.9,2420.8,4.5435]
[1728066584626,0.41306,2421.1,2421.0,0.41307]
[1728066584927,0.41306,2421.1,2421.0,1.90307]
[1728066586332,0.41304,2421.2,2421.1,0.41303]
[1728066586535,0.80463,2421.3,2421.2,0.41303]
[1728066586822,0.3916,2421.3,2421.2,1.90303]
[1728066587028,0.3916,2421.3,2421.2,2.70173]
[1728066587223,0.413,2421.5,2421.4,0.413]
[1728066587423,0.8247,2421.5,2421.4,1.903]
[1728066588845,0.8247,2421.5,2421.4,1.49]
[1728066589342,0.8247,2421.5,2421.4,1.903]
[1728066589546,0.8247,2421.5,2421.4,1.49]
[1728066591031,0.8247,2421.5,2421.4,1.903]
[1728066591032,0.4117,2421.5,2421.4,1.903]
[1728066591244,0.41297,2421.6,2421.5,0.41298]
[1728066591444,0.41297,2421.6,2421.5,2.31878]
[1728066591843,0.4119,2421.7,2421.5,1.9058]
[1728066592053,0.41297,2421.6,2421.5,2.31878]
[1728066592745,0.41297,2421.6,2421.5,1.9058]
[1728066592945,0.41298,2421.5,2421.4,1.90299]
[1728066594640,0.41298,2421.5,2421.4,1.49]
[1728066595343,0.413,2421.4,2421.3,5.5266]
[1728066598746,1.41742,2421.6,2421.3,5.1136]
[1728066599052,0.413,2421.5,2421.4,1.90299]
[1728066601246,0.413,2421.5,2421.4,1.49]
[1728066601446,0.413,2421.5,2421.4,1.903]
[1728066601650,0.413,2421.4,2421.3,3.2078]
[1728066601952,1.2086,2421.4,2421.3,3.2078]
[1728066602152,1.2086,2421.4,2421.3,5.11082]
[1728066607154,1.2086,2421.4,2421.3,1.90302]
[1728066607756,1.2086,2421.4,2421.3,5.11082]
[1728066611157,1.2086,2421.4,2421.3,4.6978]
[1728066611362,1.2086,2421.4,2421.3,5.11082]
[1728066612256,0.8127,2421.4,2421.3,5.11082]
[1728066614753,0.4131,2421.7,2421.3,4.6978]
[1728066614951,0.82607,2421.7,2421.6,0.41297]
[1728066615356,0.82607,2421.7,2421.6,1.24467]
[1728066615551,0.41297,2421.7,2421.6,1.24467]
[1728066615764,0.41297,2421.7,2421.6,1.66607]
[1728066616766,0.3889,2421.8,2421.6,1.2531]
[1728066617065,0.3889,2421.8,2421.6,1.66606]
[1728066617066,0.41295,2421.7,2421.6,1.66606]
[1728066620462,0.3889,2421.8,2421.6,1.2531]
[1728066620663,0.80185,2421.8,2421.7,1.90295]
[1728066621566,3.77532815,2422.0,2421.7,1.49]
[1728066621768,4.18823815,2422.0,2421.9,1.90291]
[1728066622564,0.41294,2421.9,2421.8,0.41292]
[1728066622772,0.41294,2421.9,2421.8,1.90292]
[1728066623559,3.77532815,2422.0,2421.8,1.49]
[1728066623765,4.18823815,2422.0,2421.9,0.41291]
[1728066624063,4.18823815,2422.0,2421.9,0.81511]
[1728066624666,4.18823815,2422.0,2421.9,0.4022]
[1728066624863,0.41293,2421.8,2421.7,2.29804]
[1728066629272,3.77532815,2422.0,2421.9,0.41291]
[1728066630070,4.18822815,2422.0,2421.9,3.62071]
[1728066631663,3.77532815,2422.0,2421.9,3.62071]
[1728066631863,3.77532815,2422.0,2421.9,7.74951]
[1728066632071,3.77532815,2422.0,2421.9,14.29545417]
[1728066632372,3.77532815,2422.0,2421.9,14.47548592]
[1728066632574,3.77532815,2422.0,2421.9,14.29527621]
[1728066632776,3.77532815,2422.0,2421.9,7.74951]
[1728066633179,3.77532815,2422.0,2421.9,13.74951]
[1728066634887,5.27386582,2422.3,2421.9,13.74951]
[1728066634888,0.41285,2422.3,2422.2,0.41285]
[1728066635075,0.41285,2422.3,2422.2,1.90285]
[1728066635277,4.65644,2422.5,2422.2,1.49]
[1728066635475,3.6244,2422.5,2422.2,1.49]
[1728066635677,3.6244,2422.5,2422.4,1.49]
[1728066635678,0.4166,2422.5,2422.4,1.49]
[1728066635872,0.4166,2422.5,2422.4,1.90283]
[1728066636082,3.2078,2422.8,2422.7,0.41278]
[1728066636381,3.87907712,2423.0,2422.8,0.41275]
[1728066636382,0.4088,2422.9,2422.8,0.41275]
[1728066636684,4.19579712,2423.1,2422.8,5.5075]
[1728066636875,4.19579712,2423.1,2423.0,1.90273]
[1728066637388,0.41274,2422.9,2422.8,5.5075]
[1728066637587,0.41274,2422.9,2422.8,2.71246]
[1728066638673,0.80634,2423.0,2422.9,0.41274]
[1728066638871,0.80634,2423.0,2422.9,1.90274]
[1728066642286,0.80634,2423.0,2422.9,1.49]
[1728066642481,0.41274,2422.9,2422.8,5.92025]
[1728066644582,0.41274,2422.9,2422.8,5.53525]
[1728066644786,0.41274,2422.9,2422.8,1.49]
[1728066644980,0.41278,2422.8,2422.7,1.90277]
[1728066645181,0.41278,2422.8,2422.7,1.49]
[1728066645478,1.03188,2422.9,2422.6,0.4077]
[1728066645786,1.03188,2422.9,2422.6,2.31049]
[1728066645787,0.41278,2422.7,2422.6,2.31049]
[1728066646192,0.41278,2422.7,2422.6,1.8977]
[1728066646384,0.41278,2422.7,2422.6,1.49]
[1728066646585,0.41278,2422.7,2422.6,1.9028]
[1728066646787,0.41278,2422.7,2422.6,1.49]
[1728066647697,0.4128,2422.6,2422.5,4.6978]
[1728066647879,1.2056,2422.6,2422.5,5.11061]
[1728066648186,1.2056,2422.6,2422.1,1.07736179]
[1728066648187,1.03212,2422.4,2422.1,1.07736179]
[1728066648387,0.41286,2422.2,2422.1,1.07736179]
[1728066649092,1.20866,2422.2,2422.1,1.07736179]
[1728066649479,0.41288,2422.1,2422.0,0.41289]
[1728066650491,0.41288,2422.1,2422.0,0.4129]
[1728066650893,0.4129,2422.0,2421.9,2.704]
[1728066654294,1.82798,2422.2,2421.9,2.2911]
[1728066654494,0.41289,2422.1,2422.0,1.49]
[1728066654990,0.4129,2422.0,2421.9,2.3112]
[1728066655187,0.4129,2422.0,2421.9,1.9029]
[1728066655389,0.41291,2421.9,2421.8,3.6158]
[1728066655595,1.49,2422.1,2421.7,2.31684]
[1728066655797,0.83453,2421.8,2421.7,2.31684]
[1728066656890,0.83453,2421.8,2421.7,1.90294]
[1728066659102,0.83453,2421.8,2421.7,1.49]
[1728066659715,0.4129,2422.1,2422.0,0.41289]
[1728066659897,0.4129,2422.1,2421.8,1.8992]
[1728066659898,1.522,2422.1,2421.8,1.8992]
[1728066660199,0.41291,2422.0,2421.9,0.4129]
[1728066660699,0.41291,2422.0,2421.8,0.4092]
[1728066660700,4.1288,2422.0,2421.8,0.4092]
[1728066660898,0.41293,2421.9,2421.8,0.41293]
[1728066661305,3.2078,2422.3,2421.7,4.6978]
[1728066661499,0.4129,2422.1,2422.0,1.90289]
[1728066661704,0.4129,2422.1,2422.0,1.49]
[1728066661897,0.41289,2422.1,2422.0,0.41289]
[1728066662696,0.41289,2422.1,2422.0,0.4058]
[1728066665809,0.80318,2422.2,2422.0,0.4058]
[1728066665998,0.41288,2422.1,2422.0,1.2532]
[1728066666192,0.41288,2422.1,2422.0,1.6661]
[1728066666595,0.41288,2422.1,2422.0,1.2532]
[1728066667610,0.41288,2422.1,2422.0,1.6661]
[1728066668708,0.402,2422.5,2422.0,2.7432]
[1728066668909,0.41287,2422.2,2422.1,1.90288]
[1728066669399,0.41287,2422.2,2422.1,1.49]
[1728066669796,0.41287,2422.2,2422.1,1.90288]
[1728066671107,0.41287,2422.2,2422.1,1.49]
[1728066671305,0.41287,2422.2,2422.1,1.90288]
[1728066671504,0.41287,2422.2,2422.1,1.49]
[1728066671900,0.41287,2422.2,2422.1,1.90288]
[1728066672606,0.41288,2422.1,2422.0,3.15609]
[1728066673607,1.03212,2422.3,2422.0,2.7432]
[1728066673823,1.49,2422.5,2422.0,2.7432]
[1728066673824,0.4124,2422.7,2422.1,1.49]
[1728066674116,0.4124,2422.7,2422.2,0.41284]
[1728066674117,0.41286,2422.3,2422.2,0.41284]
[1728066675117,0.41286,2422.3,2422.1,1.49]
[1728066675414,0.41286,2422.3,2422.2,0.41285]
[1728066676416,0.41286,2422.2,2422.1,1.90288]
[1728066678012,0.81996,2422.3,2422.0,5.951]
[1728066678206,0.41288,2422.1,2422.0,4.461]
[1728066678407,0.41288,2422.1,2422.0,1.6661]
[1728066679010,0.41288,2422.1,2422.0,1.2532]
[1728066679514,5.6188,2422.1,2421.7,3.2078]
[1728066679716,0.41293,2421.8,2421.7,3.62075]
[1728066680904,0.41293,2421.8,2421.7,3.2078]
[1728066681111,2.93079,2421.9,2421.5,1.193]
[1728066681418,0.41297,2421.6,2421.5,0.4166]
[1728066686107,0.413,2421.4,2421.3,1.61599712]
[1728066686314,0.413,2421.4,2421.3,2.01529712]
[1728066687422,0.413,2421.4,2421.3,0.3993]
[1728066687625,0.41303,2421.2,2421.1,0.7973]
[1728066688422,0.41303,2421.2,2421.1,1.21035]
[1728066688814,0.41303,2421.2,2421.1,0.7973]
[1728066689114,0.4029,2421.3,2421.0,6.64242651]
[1728066689314,0.83015,2421.1,2421.0,6.64242651]
[1728066690120,0.83015,2421.1,2421.0,3.2078]
[1728066690418,0.83015,2421.1,2421.0,3.62087]
[1728066691519,0.41305,2421.1,2421.0,3.62087]
[1728066692022,0.41305,2421.1,2421.0,0.41307]
[1728066694123,1.03259,2421.2,2420.9,1.1998]
[1728066694327,0.41306,2421.1,2421.0,0.41305]
[1728066694626,4.65546,2421.3,2420.9,1.1998]
[1728066694827,0.41307,2421.0,2420.9,1.61287]
[1728066695028,0.41306,2421.2,2421.1,0.41304]
[1728066695324,0.41307,2421.1,2421.0,0.41305]
[1728066696320,0.41305,2421.2,2421.1,0.41304]
[1728066699124,6.5388,2421.9,2421.1,4.1304]
[1728066699324,3.77837015,2422.1,2421.4,3.22]
[1728066699325,3.87437015,2422.1,2421.4,3.22]
[1728066699621,3.87437015,2422.1,2421.3,3.2078]
[1728066699622,3.77837015,2422.1,2421.7,1.03238]
[1728066699830,3.77837015,2422.1,2421.8,0.4272]
[1728066700222,0.41291,2421.9,2421.8,0.4272]
[1728066700829,0.41291,2421.9,2421.8,0.84013]
[1728066701022,0.41291,2421.9,2421.8,0.4272]
[1728066701727,0.41295,2421.7,2421.6,3.62076]
[1728066706032,1.21285,2421.8,2421.6,3.2078]
[1728066706225,0.41291,2422.0,2421.8,0.41292]
[1728066706418,0.41289,2422.1,2421.9,1.211]
[1728066706622,0.41289,2422.1,2422.0,0.41289]
[1728066707027,0.8086,2422.3,2422.1,0.41288]
[1728066707230,0.41285,2422.3,2422.2,0.83306]
[1728066707430,0.41285,2422.3,2422.2,0.4202]
[1728066717935,1.90285,2422.3,2422.2,0.4202]
[1728066720440,0.41285,2422.3,2422.2,0.83306]
[1728066720742,1.49,2422.4,2422.2,0.83306]
[1728066720942,1.90283,2422.4,2422.3,0.3922]
[1728066721543,0.41285,2422.3,2422.2,0.4202]
[1728066721844,1.90285,2422.3,2422.2,0.4202]
[1728066722035,1.49,2422.3,2422.0,0.80509]
[1728066722238,0.4196,2422.2,2422.0,1.21039]
[1728066722640,0.83247,2422.2,2422.1,0.41288]
[1728066723346,0.4196,2422.2,2422.1,0.41288]
[1728066723645,0.83248,2422.2,2422.0,1.21039]
[1728066723837,0.83248,2422.2,2422.0,0.7975]
[1728066724034,0.41282,2422.5,2422.3,0.41284]
[1728066724632,2.9359,2422.6,2422.1,1.49]
[1728066724948,0.41286,2422.3,2422.2,0.41286]
[1728066725846,2.32244,2422.4,2422.0,3.31975]
[1728066726138,0.4196,2422.4,2422.3,0.41285]
[1728066726546,0.83244,2422.4,2422.2,0.41285]
[1728066726941,0.83244,2422.4,2422.3,0.4239]
[1728066727141,0.83244,2422.4,2422.3,0.83675]
[1728066727649,0.83244,2422.4,2422.3,0.4239]
[1728066728042,0.83244,2422.4,2422.3,0.8398]
[1728066728745,0.41282,2422.5,2422.3,0.8398]
[1728066728948,0.41282,2422.5,2422.4,0.4103]
[1728066729258,0.41281,2422.5,2422.4,0.82313]
[1728066729545,0.3963,2422.6,2422.4,0.4103]
[1728066729752,1.49,2422.7,2422.5,0.41281]
[1728066729953,3.6041,2422.8,2422.6,0.4128]
[1728066730145,4.01687,2422.8,2422.7,0.788]
[1728066730349,11.79240684,2423.0,2422.7,0.788]
[1728066730545,0.41274,2422.9,2422.8,0.82306]
[1728066731351,0.41274,2422.9,2422.8,0.4103]
[1728066731545,5.26980752,2423.0,2422.8,0.82305]
[1728066731753,0.41274,2422.9,2422.8,0.82305]
[1728066732052,0.41274,2422.9,2422.8,0.4103]
[1728066732443,0.41274,2422.9,2422.8,0.82306]
[1728066732844,0.41274,2422.9,2422.8,0.4103]
[1728066733044,4.85706752,2423.0,2422.8,0.82305]
[1728066733045,5.26980752,2423.0,2422.8,0.82305]
[1728066733242,5.26980752,2423.0,2422.8,0.4103]
[1728066733243,4.85706752,2423.0,2422.8,0.4103]
[1728066733454,4.85706752,2423.0,2422.9,0.41274]
[1728066740258,4.85706752,2423.0,2422.9,1.90274]
[1728066740951,0.41269,2423.3,2423.1,0.41271]
[1728066741151,0.41269,2423.3,2423.2,0.3913]
[1728066741353,0.41269,2423.3,2423.2,1.1896]
[1728066742860,0.4097,2423.4,2423.2,2.6796]
[1728066743056,0.82303,2423.6,2423.4,0.41265]
[1728066743356,0.41264,2423.5,2423.4,0.41265]
[1728066743757,0.41264,2423.5,2423.3,1.49]
[1728066743950,0.41264,2423.5,2423.3,1.90266]
[1728066745254,0.41264,2423.5,2423.4,0.41266]
[1728066745454,3.2078,2423.8,2423.3,1.49]
[1728066745661,0.41262,2423.7,2423.5,1.90263]
[1728066745855,3.6106,2423.8,2423.6,0.843]
[1728066746054,3.6106,2423.8,2423.6,1.25562]
[1728066746253,4.0232,2423.8,2423.6,1.67412]
[1728066746654,0.41261,2423.7,2423.6,1.2615]
[1728066746853,0.41264,2423.5,2423.4,3.2078]
[1728066747155,1.90264,2423.5,2423.4,3.2078]
[1728066747364,6.02904,2423.5,2423.4,3.2078]
[1728066747763,0.41264,2423.5,2423.4,3.2078]
[1728066750965,0.3969,2423.6,2423.4,3.62046]
[1728066751162,0.41262,2423.7,2423.5,0.82283]
[1728066751365,0.41262,2423.6,2423.5,1.63373]
[1728066751569,0.41262,2423.6,2423.5,1.2211]
[1728066754672,0.41264,2423.5,2423.4,3.2078]
[1728066754863,0.83534,2423.5,2423.4,3.2078]
[1728066755065,0.41266,2423.4,2423.3,0.83728]
[1728066755266,0.41266,2423.4,2423.3,0.4246]
[1728066755668,0.41266,2423.4,2423.3,0.83728]
[1728066756175,0.41266,2423.4,2423.3,0.83727]
[1728066756475,0.83536,2423.5,2423.3,0.4246]
[1728066756773,3.6204,2423.8,2423.7,0.41261]
[1728066757368,0.4126,2423.8,2423.7,0.41261]
[1728066757874,0.41261,2423.7,2423.6,1.2111]
[1728066758366,0.41261,2423.7,2423.6,1.62372]
[1728066758568,0.41261,2423.7,2423.6,1.62371]
[1728066758767,0.41264,2423.5,2423.4,3.62045]
[1728066758967,1.03149,2423.8,2423.2,0.3958]
[1728066758968,0.4143,2423.6,2423.2,0.3958]
[1728066759167,0.41267,2423.4,2423.3,1.22707]
[1728066759374,0.41267,2423.4,2423.3,0.41267]
[1728066759563,0.41267,2423.4,2423.3,1.21767]
[1728066760674,0.41267,2423.4,2423.3,0.805]
[1728066760975,0.41267,2423.4,2423.3,1.21768]
[1728066763370,0.41267,2423.4,2423.3,0.805]
[1728066763566,0.81927,2423.4,2423.3,0.805]
[1728066763773,0.81927,2423.4,2423.3,0.3902]
[1728066763968,0.4066,2423.4,2423.2,0.80848]
[1728066764275,0.4066,2423.4,2423.2,0.3958]
[1728066764276,0.81018,2423.3,2423.2,0.3958]
[1728066764478,0.41269,2423.2,2423.1,3.6205]
[1728066764873,0.41269,2423.2,2423.1,3.2078]
[1728066766868,1.4292,2423.3,2422.9,0.39]
[1728066767071,0.41273,2423.0,2422.9,0.80274]
[1728066767466,0.81573,2423.0,2422.9,0.80274]
[1728066768474,0.81573,2423.0,2422.9,0.39]
[1728066769687,0.41274,2422.9,2422.8,4.41774]
[1728066770176,0.41274,2422.9,2422.8,4.81074]
[1728066774177,0.81574,2423.0,2422.9,0.41274]
[1728066775480,0.41274,2422.9,2422.8,4.81075]
[1728066776982,0.41274,2422.9,2422.8,4.81076]
[1728066777380,1.03176,2423.2,2422.8,7.618]
[1728066777680,0.41273,2423.0,2422.9,0.41272]
[1728066779686,1.03174,2423.2,2422.8,7.618]
[1728066779891,0.41274,2423.0,2422.9,0.41274]
[1728066780487,0.4275,2423.3,2422.9,4.1272]
[1728066780686,1.33597745,2423.2,2423.1,0.41269]
[1728066780897,0.4127,2423.2,2423.1,0.41269]
[1728066781981,0.8285,2423.2,2423.1,0.41271]
[1728066783086,0.82849,2423.2,2423.1,0.41271]
[1728066784901,0.4158,2423.2,2422.8,8.26067]
[1728066785095,0.41272,2423.1,2423.0,0.41271]
[1728066785700,0.41272,2423.1,2423.0,1.90271]
[1728066785899,3.77336663,2423.3,2423.2,0.41269]
[1728066786193,0.41267,2423.4,2423.3,0.41267]
[1728066788199,0.41268,2423.3,2423.2,0.82449]
[1728066789701,0.41266,2423.4,2423.3,0.41266]
[1728066789998,0.41268,2423.3,2423.2,0.4118]
[1728066790203,0.41269,2423.2,2423.1,3.6205]
[1728066791202,0.418,2423.5,2423.1,3.2078]
[1728066791403,0.41269,2423.3,2423.2,0.41269]
[1728066792292,0.41269,2423.2,2423.1,3.6205]
[1728066792490,0.81729,2423.2,2423.1,3.6205]
[1728066794004,0.41269,2423.2,2423.1,3.6205]